fUSD/lending_fUSD_20240209
["ID","MTS","AMOUNT","RATE_DAILY","PERIOD"]
[313631405,1707501040737,-155.0,0.00022999,2]
[313631406,1707501040746,-7510.34777386,0.00023,2]
[313631407,1707501040758,-464.48071608,0.00023,2]
[313631408,1707501040791,-468.95498279,0.00023,2]
[313631409,1707501040802,-645.07210633,0.00023,2]
[313631410,1707501040814,-4731.21895331,0.00023,2]
[313631411,1707501040942,-12287.66545607,0.00023,2]
[313631412,1707501040953,-691.15667022,0.00023,2]
[313631413,1707501040965,-617.91306951,0.00023,2]
[313631414,1707501040980,-269.2302333,0.00023,2]
[313631416,1707501040992,-1070.86338959,0.00023,2]
[313631418,1707501041008,-579.87489504,0.00023,2]
[313631420,1707501041020,-5467.35791784,0.00023,2]
[313631423,1707501041031,-1758.93979561,0.00023,2]
[313631460,1707501042428,-2989.00492654,0.00023,2]
[313631461,1707501042646,-626.27172106,0.00023,2]
[313631462,1707501042659,-373.36689,0.00023,2]
[313631463,1707501042708,-511.680005,0.00023,2]
[313631476,1707501045553,-14172.17681873,0.00023,2]
[313631477,1707501045566,-380565.46749752,0.00023,2]
[313631478,1707501045685,-142883.80984545,0.00023,2]
[313631479,1707501045695,-2606.395889,0.00023,2]
[313631480,1707501045706,-258.21,0.00023,2]
[313631481,1707501045716,-500.0,0.00023014,2]
[313631482,1707501045726,-289.53,0.00023022,2]
[313631483,1707501045736,-19656.6663183,0.00023082,2]
[313631484,1707501045747,-7925.377462,0.0002313,2]
[313631485,1707501045756,-1310.92700159,0.00023141,2]
[313631486,1707501045767,-155.21,0.00023148,2]
[313631487,1707501045777,-1008.82211059,0.00023207,2]
[313631488,1707501045786,-300.0,0.00023306,2]
[313631490,1707501045796,-155.21,0.00023313,2]
[313631492,1707501045806,-154.57658881,0.00023363,2]
[313631494,1707501045816,-805.01,0.0002359,2]
[313631495,1707501045826,-202.03248539,0.00024,2]
[313631496,1707501045836,-517.55861363,0.00024,2]
[313631497,1707501045846,-207.59,0.00024083,2]
[313631499,1707501045856,-457.29270073,0.000241,2]
[313631501,1707501045867,-289.53,0.00024118,2]
[313631503,1707501045877,-154.57658881,0.00024198,2]
[313631505,1707501045887,-167.0,0.00024232,2]
[313631507,1707501045897,-205.0,0.0002432,5]
[313631509,1707501045907,-3463.01,0.00024384,2]
[313631511,1707501045917,-154.42,0.00024384,2]
[313631513,1707501045927,-166.41,0.0002447,2]
[313631515,1707501045936,-793.59,0.00024546,2]
[313631517,1707501045946,-250.0,0.00024658,2]
[313631519,1707501045957,-300.0,0.00024676,2]
[313631522,1707501045966,-495.93,0.0002469,2]
[313631524,1707501045977,-210.0,0.00024891,2]
[313631526,1707501045986,-210.0,0.00024891,2]
[313631528,1707501045996,-600.21410856,0.000249,2]
[313631530,1707501046006,-18701.36778884,0.00025,4]
[313631532,1707501046016,-304.48967897,0.00025,2]
[313631534,1707501046026,-155.0,0.00025,2]
[313631536,1707501046037,-1908.43647324,0.00025,2]
[313631538,1707501046046,-430.58250006,0.00025,2]
[313631540,1707501046056,-167.98637528,0.00025,2]
[313631542,1707501046066,-936.97366126,0.00025,2]
[313631544,1707501046076,-1589.60561063,0.00025,2]
[313631545,1707501046086,-158.5849081,0.00025,2]
[313631546,1707501046095,-33176.01038049,0.00025,2]
[313631547,1707501046105,-350.0,0.00025,3]
[313631548,1707501046115,-154.57658881,0.00025033,2]
[313631549,1707501046125,-630.08,0.0002509,2]
[313631550,1707501046135,-289.53,0.00025214,2]
[313631551,1707501046148,-805.01,0.00025234,2]
[313631552,1707501046164,-167.0,0.00025496,2]
[313631553,1707501046174,-216.0,0.0002553,2]
[313631554,1707501046183,-1252.0,0.0002553,2]
[313631555,1707501046193,-1232.0,0.0002553,2]
[313631556,1707501046202,-2519.0,0.0002553,2]
[313631557,1707501046212,-19811.0,0.0002553,2]
[313631558,1707501046222,-2127.914,0.0002553,2]
[313631559,1707501046231,-6216.471,0.0002553,2]
[313631560,1707501046241,-1031.918,0.0002553,2]
[313631561,1707501046251,-154.57658881,0.00025868,2]
[313631562,1707501046261,-150.0,0.00026079,2]
[313631563,1707501046271,-324.41864448,0.0002622,2]
[313631564,1707501046281,-289.53,0.00026311,2]
[313631565,1707501046291,-19069.94027699,0.000265,2]
[313631572,1707501063787,203.0,0.0002209,2]
[313631573,1707501070330,2841.54004237,0.00022,7]
[313631574,1707501086674,1532.78361556,0.00018,2]
[313631575,1707501092832,750.3408861,0.0001,2]
[313631576,1707501096019,1330.30084391,0.0002,2]
[313631577,1707501114114,1686.81456029,0.00021,4]
[313631578,1707501128599,4497.94654223,0.000199,3]
[313631579,1707501131294,162.5922843,0.00020698,2]
[313631580,1707501215374,458.91704022,0.000249,9]
[313631581,1707501219764,458.91704022,0.000269,12]
[313631582,1707501251082,858.17119819,0.0002,2]
[313631583,1707501251105,858.17119819,0.0002,2]
[313631584,1707501251126,858.17119819,0.0002,2]
[313631585,1707501251148,858.17119819,0.0002,2]
[313631586,1707501251174,11659.82902006,0.0002,2]
[313631587,1707501257468,475.46988706,0.00019999,2]
[313631588,1707501331375,785.87,0.00020656,2]
[313631589,1707501343563,250.0,0.00022376,2]
[313631590,1707501360526,275.35022413,0.00025415,10]
[313631591,1707501365313,275.35022413,0.00026673,12]
[313631593,1707501376365,2000.0,0.00022295,2]
[313631594,1707501411430,250.0,0.00022,2]
[313631595,1707501463496,23900.0,0.00021917,2]
[313631596,1707501502060,165.21013448,0.000254,10]
[313631597,1707501507044,165.21013448,0.0002665,12]
[313631603,1707501523542,354.08,0.00022,2]
[313631604,1707501527251,504.85247061,0.00022,2]
[313631605,1707501530038,258.26,0.00022,2]
[313631606,1707501531520,258.26,0.00022137,2]
[313631607,1707501532258,10000.0,0.00021918,2]
[313631608,1707501532742,274.21842995,0.00022274,2]
[313631609,1707501537630,150.0,0.00022,2]
[313631610,1707501541560,235.89308219,0.00022,2]
[313631611,1707501609781,175.23,0.00022062,2]
[313631612,1707501609970,175.23,0.00022123,2]
[313631613,1707501610193,175.23,0.00022183,2]
[313631614,1707501610413,175.23,0.00022244,2]
[313631615,1707501610642,175.23,0.00022305,2]
[313631616,1707501610869,175.23,0.00022365,2]
[313631617,1707501611074,175.23,0.00022426,2]
[313631618,1707501611471,175.23,0.00022486,2]
[313631619,1707501611938,154.44,0.00021898,2]
[313631620,1707501785836,250.0,0.00021918,2]
[313631621,1707501791787,405.02653384,0.00021241,2]
[313631622,1707501794967,421.50105747,0.0002198,2]
[313631623,1707501799794,164.06584013,0.0002198,2]
[313631624,1707501812809,905.0,0.00021751,2]
[313631625,1707501812956,421.50105747,0.0002198,2]
[313631626,1707501818004,199.55464956,0.00021898,2]
[313631627,1707501823786,403.6003256,0.00021241,2]
[313631628,1707501835014,421.50105747,0.0002198,2]
[313631629,1707501841783,403.6003256,0.00021241,2]
[313631630,1707501845353,363.85754811,0.00021898,2]
[313631631,1707501850119,647.37918372,0.000225,2]
[313631632,1707501854959,421.50105747,0.0002198,2]
[313631633,1707501859786,401.79275658,0.00020604,2]
[313631634,1707501863322,362.44851157,0.00021241,2]
[313631635,1707501879342,759.39,0.00019912,2]
[313631636,1707501879571,759.39,0.00022176,2]
[313631637,1707501893292,200.0,0.0002182,2]
[313631638,1707501894585,2000.0,0.0002182,2]
[313631639,1707501904498,1963.3588,0.00022432,2]
[313631640,1707501946494,150.0,0.000276,9]
[313631641,1707501953893,1488.3,0.00021827,2]
[313631642,1707501979645,250.0,0.00021804,2]
[313631653,1707502039420,300.0,0.000223,8]
[313631654,1707502041533,700.0,0.000224,8]
[313631655,1707502043686,1000.0,0.000225,8]
[313631656,1707502080790,150.19,0.00021977,2]
[313631657,1707502081103,150.19,0.00022065,2]
[313631658,1707502081230,150.19,0.00022153,2]
[313631659,1707502081466,150.19,0.00022241,2]
[313631660,1707502081682,150.19,0.00022329,2]
[313631661,1707502081899,150.19,0.00022417,2]
[313631945,1707502166485,420.05031454,0.00022501,2]
[313632215,1707502173419,156.17744153,0.00022501,2]
[313632306,1707502175387,154.44,0.00021769,2]
[313632574,1707502196872,2605.00015539,0.00022501,2]
[313632575,1707502199619,526.28081142,0.00022501,2]
[313632576,1707502202415,7819.97787936,0.00022501,2]
[313632577,1707502208941,165.51,0.00021795,2]
[313632600,1707502234227,-672.93897644,0.00022502,2]
[313632601,1707502234240,-377.37229473,0.00022502,2]
[313632602,1707502234249,-1041.32357854,0.00022502,2]
[313632603,1707502234258,-241.04908401,0.00022502,2]
[313632604,1707502234268,-155.0,0.00022504,2]
[313632605,1707502234277,-150.19,0.00022505,2]
[313632606,1707502234287,-300.0,0.00022513,2]
[313632607,1707502234297,-150.0,0.00022513,2]
[313632608,1707502234306,-646.47648549,0.00022534,2]
[313632609,1707502234315,-6505.38855723,0.00022544,2]
[313632610,1707502234343,-3173.80907804,0.00022544,2]
[313632611,1707502234355,-691.0357123,0.00022544,2]
[313632612,1707502234386,205.0,0.00027231,9]
[313632613,1707502234404,-306.592,0.00022544,2]
[313632626,1707502237623,-294.08548322,0.00022544,2]
[313632627,1707502237636,-41139.45447744,0.00022544,2]
[313632628,1707502237680,-18130.7318001,0.00022544,2]
[313632629,1707502237689,-282.19441718,0.00022548,2]
[313632630,1707502237699,-645.77,0.00022548,2]
[313632631,1707502237707,-603.1,0.00022548,2]
[313632632,1707502237717,-205.0,0.0002255,2]
[313632633,1707502237726,-150.19,0.00022593,2]
[313632634,1707502237735,-150.99,0.00022593,2]
[313632635,1707502237744,-1400.0,0.000226,8]
[313632636,1707502237753,-634.95,0.000226,2]
[313632637,1707502237764,-499.99,0.000226,2]
[313632638,1707502237775,-758.62,0.000226,2]
[313632639,1707502237784,-1162.63,0.00022627,2]
[313632640,1707502237793,-408.2,0.0002266,2]
[313632641,1707502237803,-253.12,0.00022667,2]
[313632642,1707502237813,-150.19,0.00022681,2]
[313632643,1707502237822,-710.87,0.00022694,2]
[313632644,1707502237831,-720.97,0.00022695,2]
[313632645,1707502237840,-16109.0163,0.00022696,2]
[313632646,1707502237849,-1700.0,0.000227,8]
[313632647,1707502237859,-718.53,0.00022734,2]
[313632648,1707502237868,-150.19,0.00022769,2]
[313632649,1707502237877,-710.9,0.00022796,2]
[313632650,1707502237886,-713.9,0.00022796,2]
[313632651,1707502237897,-5990.2197,0.00022797,2]
[313632652,1707502237906,-2479.3575,0.00022797,2]
[313632653,1707502237915,-314.1678,0.00022797,2]
[313632654,1707502237924,-1492.4808,0.00022798,2]
[313632655,1707502237934,-300.0,0.000228,8]
[313632656,1707502237942,-150.19,0.00022858,2]
[313632657,1707502237952,-230.53034698,0.00022896,2]
[313632658,1707502237962,-155.0,0.00022896,2]
[313632659,1707502237971,-432.34380191,0.00022896,2]
[313632660,1707502237980,-158.54812111,0.00022896,2]
[313632661,1707502237989,-156.17744242,0.00022896,2]
[313632662,1707502237998,-214.6061358,0.00022896,2]
[313632663,1707502238008,-2085.79442911,0.00022896,2]
[313632664,1707502238017,-1192.52864105,0.00022896,2]
[313632665,1707502238026,-157.58528949,0.00022896,2]
[313632666,1707502238035,-358.32340856,0.00022896,2]
[313632667,1707502238044,-531.31290087,0.00022896,2]
[313632668,1707502238053,-1356.06546784,0.00022897,2]
[313632669,1707502238062,-1919.02271161,0.00022897,2]
[313632670,1707502238071,-807.00256644,0.00022898,2]
[313632671,1707502238080,-507.7088,0.00022898,2]
[313632672,1707502238089,-230.4933,0.00022898,2]
[313632673,1707502238098,-82191.88214216,0.00022898,2]
[313632674,1707502238110,-5815.55767186,0.00022898,2]
[313632675,1707502238121,-11992.56018598,0.00022898,2]
[313632676,1707502238130,-210.0,0.000229,2]
[313632677,1707502238140,-2022.78878145,0.000229,2]
[313632678,1707502238149,-250.8272,0.000229,2]
[313632679,1707502238158,-1000.0,0.000229,2]
[313632680,1707502238167,-6923.82383257,0.000229,2]
[313632681,1707502238178,-305.5623205,0.000229,2]
[313632682,1707502238187,-698.9539701,0.000229,2]
[313632683,1707502238207,-431.95013453,0.000229,2]
[313632684,1707502238217,-942.51446366,0.000229,2]
[313632685,1707502238227,-491.88301469,0.000229,2]
[313632686,1707502238236,-921.14,0.000229,2]
[313632687,1707502238245,-1833.3,0.000229,2]
[313632688,1707502238254,-459.34349141,0.000229,2]
[313632689,1707502238264,-2543.672282,0.000229,2]
[313632690,1707502238273,-2437.97489716,0.000229,2]
[313632691,1707502238282,-300.0,0.000229,8]
[313632692,1707502238291,-459.3434914,0.00022907,2]
[313632693,1707502238299,-2543.672282,0.00022907,2]
[313632694,1707502238309,-459.3434914,0.00022914,2]
[313632695,1707502238318,-2543.672282,0.00022914,2]
[313632696,1707502238327,-150.19,0.00022946,2]
[313632697,1707502238336,-1000.0,0.00022957,2]
[313632698,1707502238347,-2878.74334534,0.0002296,2]
[313632699,1707502238358,-287.11624451,0.00022996,2]
[313632700,1707502238367,-157.38264733,0.00022996,2]
[313632701,1707502238377,-158.07944944,0.00022996,2]
[313632702,1707502238387,-622.91904669,0.00022996,2]
[313632703,1707502238398,-373.40390124,0.00022996,2]
[313632704,1707502238407,-162.7427246,0.00022996,2]
[313632705,1707502238416,-884.92878766,0.00022997,2]
[313632706,1707502238425,-155.72509307,0.00022997,2]
[313632707,1707502238434,-345.75604865,0.00022997,2]
[313632708,1707502238443,-490.76770208,0.00022997,2]
[313632709,1707502238453,-162.80930388,0.00022998,2]
[313632710,1707502238462,-11234.42991814,0.00022998,2]
[313632711,1707502238474,-363.69214932,0.00022998,2]
[313632712,1707502238485,-1305.89612979,0.00022998,2]
[313632713,1707502238540,155.75692483,0.00022444,2]
[313632714,1707502239263,-517.4136,0.00022596,2]
[313632715,1707502239272,-321.96726608,0.00022896,2]
[313632716,1707502239281,-1347.32594454,0.00022998,2]
[313632717,1707502239292,-108750.40136873,0.00022998,2]
[313632718,1707502239304,-1416.57063969,0.00022998,2]
[313632719,1707502239315,-1481.07984364,0.00022998,2]
[313632722,1707502239349,-289.19841951,0.00022998,2]
[313632739,1707502240166,-316.18500034,0.00022998,2]
[313632740,1707502240524,2511.13224161,0.000225,2]
[313632741,1707502240930,-1103.2385,0.00022596,2]
[313632742,1707502240939,-16863.88250372,0.00022998,2]
[313632743,1707502240952,-55892.87757574,0.00022998,2]
[313632744,1707502240962,-156.0211914,0.00022998,2]
[313632745,1707502240971,-946.67301262,0.00022998,2]
[313632746,1707502240981,-355.5913269,0.00022998,2]
[313632747,1707502240990,-2312.60059357,0.00022998,2]
[313632748,1707502241000,-197.45102203,0.00022998,2]
[313632749,1707502241009,-312.47792313,0.00022998,2]
[313632750,1707502241018,-249.40429549,0.00022998,2]
[313632751,1707502241027,-203.90995019,0.00022998,2]
[313632752,1707502241036,-156.50459175,0.00022998,2]
[313632753,1707502241045,-155.0,0.00022998,2]
[313632754,1707502241054,-201.39669076,0.00022998,2]
[313632755,1707502241066,-233.42707403,0.00022998,2]
[313632756,1707502241076,-1063.50094198,0.00022998,2]
[313632757,1707502241085,-155.0,0.00022998,2]
[313632758,1707502241094,-155.59477149,0.00022998,2]
[313632759,1707502241103,-3631.13673471,0.00022998,2]
[313632760,1707502241113,-155.0,0.00022998,2]
[313632761,1707502241122,-10552.37836956,0.00022998,2]
[313632762,1707502241132,-173.15999138,0.00022998,2]
[313632763,1707502241141,-265.83954825,0.00022998,2]
[313632764,1707502241151,-2151.23079667,0.00022998,2]
[313632765,1707502241161,-173.02009407,0.00022998,2]
[313632766,1707502241170,-631.72684832,0.00022998,2]
[313632767,1707502241179,-331.1,0.00022998,2]
[313632768,1707502241189,-266.13518399,0.00022999,2]
[313632770,1707502241198,-294.48445557,0.00022999,2]
[313632772,1707502241207,-6442.9483721,0.00022999,2]
[313632774,1707502241216,-8381.94635938,0.00022999,2]
[313632776,1707502241225,-1377.92965017,0.00022999,2]
[313632778,1707502241234,-500.0,0.00022999,2]
[313632780,1707502241243,-373.98221734,0.00022999,2]
[313632782,1707502241252,-322.45479759,0.00022999,2]
[313632784,1707502241261,-150.0,0.00022999,2]
[313632786,1707502241270,-150.0,0.00022999,2]
[313632788,1707502241279,-150.0,0.00022999,2]
[313632790,1707502241288,-150.0,0.00022999,2]
[313632792,1707502241297,-150.0,0.00022999,2]
[313632794,1707502241306,-150.0,0.00022999,2]
[313632796,1707502241315,-150.0,0.00022999,2]
[313632798,1707502241324,-150.0,0.00022999,2]
[313632800,1707502241333,-150.0,0.00022999,2]
[313632802,1707502241342,-150.0,0.00022999,2]
[313632804,1707502241351,-150.0,0.00022999,2]
[313632806,1707502241360,-150.0,0.00022999,2]
[313632808,1707502241369,-42616.60251481,0.00023,2]
[313632810,1707502241381,-9533.05144159,0.00023,2]
[313632813,1707502241395,-1032.09292142,0.00023,2]
[313632818,1707502241435,-0.02001167,0.00023,2]
[313632821,1707502241454,-17349.29926688,0.00023,2]
[313632948,1707502242723,-2437.97489715,0.00022907,2]
[313632949,1707502242732,-1384.0495738,0.00023,2]
[313632950,1707502242744,-3010.56719999,0.00023,2]
[313632951,1707502242776,-41398.45122422,0.00023,2]
[313632952,1707502242790,-33535.56465255,0.00023,2]
[313632953,1707502242840,-440045.62620707,0.00023,2]
[313632954,1707502242901,-9415.1450855,0.00023,2]
[313632955,1707502242913,-11460.15575406,0.00023,2]
[313632956,1707502244034,-155.75692482,0.0002252,2]
[313632957,1707502244043,-58857.41922394,0.00023,2]
[313632980,1707502246130,-314.16775639,0.00023,2]
[313632981,1707502246150,-907.58379227,0.00023,2]
[313632982,1707502246163,-191363.05831328,0.00023,2]
[313632983,1707502246189,-35112.1247348,0.00023,2]
[313632984,1707502246212,-287.0,0.00023,2]
[313632985,1707502248411,-1146.94746516,0.00023,2]
[313633013,1707502343600,282.45808381,0.00024895,9]
[313633014,1707502348613,282.45808381,0.0002689,12]
[313633015,1707502354960,200.0,0.00022214,2]
[313633016,1707502367935,375.96411862,0.0002234,2]
[313633017,1707502376681,300.0,0.00022444,2]
[313633019,1707502384612,2000.0,0.00022214,2]
[313633020,1707502395001,389.55,0.0002212,2]
[313633021,1707502400026,1265.36,0.00022095,2]
[313633022,1707502444360,858.17119819,0.00022445,2]
[313633023,1707502444393,108.3112786,0.00022445,2]
[313633024,1707502447196,250.0,0.00022107,2]
[313633025,1707502447724,200.0,0.00021918,2]
[313633026,1707502484292,169.47485029,0.0002489,9]
[313633027,1707502489267,169.47485029,0.0002688,12]
[313633028,1707502518190,299.85991959,0.00020043,2]
[313633029,1707502518213,525.96008041,0.00020043,2]
[313633030,1707502518259,332.21111778,0.00022307,2]
[313633031,1707502518283,493.60888222,0.00022307,2]
[313633032,1707502521518,150.19,0.00022093,2]
[313633033,1707502594100,206.0,0.0002155,2]
[313633034,1707502639354,8.37231597,0.00021905,2]
[313633035,1707502639377,196.87768403,0.00021905,2]
[313633036,1707502646480,661.29351416,0.00022442,2]
[313633037,1707502646503,858.17119819,0.00022442,2]
[313633038,1707502646528,858.17119819,0.00022442,2]
[313633039,1707502646551,858.17119819,0.00022442,2]
[313633040,1707502646574,858.17119819,0.00022442,2]
[313633041,1707502646595,35906.02169308,0.00022442,2]
[313633042,1707502663969,272.0452652,0.00022088,2]
[313633043,1707502693986,272.0452652,0.00022088,2]
[313633046,1707502712008,272.0452652,0.00022088,2]
[313633047,1707502713413,28853.5748,0.00022444,2]
[313633048,1707502728010,324.10606802,0.00022088,2]
[313633049,1707502741995,887.79146733,0.00022444,2]
[313633050,1707502763985,815.79134449,0.00022444,2]
[313633051,1707502765608,155.0,0.00022444,2]
[313633052,1707502772762,223.98946665,0.00022,2]
[313633053,1707502775188,177.11,0.00022,2]
[313633054,1707502782020,1000.0,0.00022445,2]
[313633055,1707502785515,283.18163303,0.00022444,2]
[313633056,1707502801900,885.67850219,0.000223,2]
[313633057,1707502806373,2500.0,0.00022445,2]
[313633058,1707502829104,200.0,0.00021968,2]
[313633059,1707502843899,2000.0,0.00021968,2]
[313633060,1707502848280,497.74555716,0.00020273,5]
[313633061,1707502934199,250.0,0.00021922,2]
[313633062,1707502944810,23900.0,0.00021922,2]
[313633063,1707502946593,1368.02,0.00022097,2]
[313633064,1707502954377,206.0,0.0002746,9]
[313633065,1707502980446,56536.9979,0.00022428,2]
[313633066,1707503048488,750.9,0.00019929,2]
[313633067,1707503048699,750.9,0.00022193,2]
[313633068,1707503090130,1054.46,0.00021858,2]
[313633069,1707503093416,181.7100079,0.00022416,2]
[313633070,1707503098334,181.71000788,0.00022441,2]
[313633071,1707503103335,181.71000788,0.00022467,2]
[313633072,1707503108737,181.71000788,0.00022492,2]
[313633073,1707503108807,155.0,0.00022249,2]
[313633074,1707503111964,1218.28500644,0.00022294,2]
[313633077,1707503205389,150.19,0.00021815,2]
[313633078,1707503214907,30502.711,0.00022422,2]
[313633082,1707503263061,303.61677276,0.00022502,2]
[313633083,1707503265635,2633.11422675,0.00022502,2]
[313633084,1707503291910,250.0,0.00021918,2]
[313633085,1707503297491,161.27842766,0.00022502,2]
[313633086,1707503298104,854.43898776,0.00022999,10]
[313633087,1707503298133,854.43898776,0.00022999,10]
[313633088,1707503298167,854.43898776,0.00022999,10]
[313633089,1707503298196,854.43898772,0.00022999,10]
[313633090,1707503298225,854.43898776,0.00022999,10]
[313633091,1707503298271,854.43898776,0.00022999,10]
[313633092,1707503298299,854.43898776,0.00022999,10]
[313633093,1707503298330,854.43898776,0.00022999,10]
[313633094,1707503298366,854.43898776,0.00022999,10]
[313633095,1707503298397,854.43898776,0.00022999,10]
[313633096,1707503298523,25516.89120184,0.00020257,5]
[313633097,1707503301138,547.91216625,0.00022502,7]
[313633098,1707503302172,9133.73827662,0.00021382,7]
[313633099,1707503303194,273.6156994,0.00022502,15]
[313633100,1707503303227,224.06890769,0.00022283,4]
[313633101,1707503304697,856.59911693,0.00022502,4]
[313633102,1707503305234,1283.2106268,0.00022502,5]
[313633103,1707503308699,6090.94791221,0.00022502,7]
[313633104,1707503309057,311.64,0.00021668,2]
[313633105,1707503313964,206.0,0.00021812,2]
[313633106,1707503314488,206.0,0.00026903,9]
[313633107,1707503317296,273.6156994,0.00022502,15]
[313633108,1707503320621,9133.73827662,0.00021382,7]
[313633109,1707503321109,547.91216625,0.00022502,7]
[313633110,1707503321412,8100.0,0.000223,8]
[313633111,1707503323512,16300.0,0.000224,8]
[313633112,1707503324606,3173.38386226,0.00022502,7]
[313633113,1707503324688,856.59911693,0.00022502,4]
[313633114,1707503325152,1283.2106268,0.00022502,5]
[313633115,1707503325190,224.06890769,0.00022281,4]
[313633116,1707503325615,24400.0,0.000225,8]
[313633117,1707503335152,273.6156994,0.00022502,15]
[313633118,1707503336170,9133.73827662,0.0002138,7]
[313633119,1707503338932,5816.07686447,0.00024875,9]
[313633120,1707503340701,856.59911693,0.00022502,4]
[313633121,1707503341232,1283.2106268,0.00022502,5]
[313633122,1707503341265,547.91216625,0.00022502,7]
[313633123,1707503343912,5816.07686447,0.0002685,12]
[313633124,1707503345195,224.06890769,0.00022281,4]
[313633125,1707503346639,3173.38386226,0.00022502,7]
[313633126,1707503351148,273.6156994,0.00022502,15]
[313633127,1707503354177,4130.40972923,0.0002138,7]
[313633128,1707503358690,856.59911693,0.00022502,4]
[313633129,1707503359130,547.91216625,0.00022502,7]
[313633130,1707503359167,1283.2106268,0.00022502,5]
[313633131,1707503364613,3173.38386226,0.00022502,7]
[313633132,1707503365281,224.06890769,0.00022281,4]
[313633133,1707503371150,273.6156994,0.00022502,15]
[313633134,1707503375041,181.95,0.00021635,2]
[313633135,1707503376698,856.59911693,0.00022502,4]
[313633136,1707503377157,1283.2106268,0.00022502,5]
[313633137,1707503379180,547.91216625,0.00022502,7]
[313633138,1707503381197,355.20639887,0.00022277,4]
[313633139,1707503382692,3173.38386226,0.00022502,7]
[313633146,1707503389173,215.07014731,0.00022502,15]
[313633147,1707503393305,1000.0,0.00021631,2]
[313633148,1707503395390,4265.84733406,0.00022502,2]
[313633149,1707503396484,177.11,0.00022,2]
[313633150,1707503397134,547.91216625,0.00022502,7]
[313633151,1707503397171,268.5096189,0.00022502,5]
[313633152,1707503400708,481.066534,0.00022502,4]
[313633153,1707503402615,3173.38386226,0.00022502,7]
[313633154,1707503403065,258.26,0.00022,2]
[313633155,1707503405635,258.26,0.00022137,2]
[313633156,1707503406907,258.26,0.00022274,2]
[313633157,1707503407431,3307.58849105,0.00022502,2]
[313633158,1707503408178,515.12,0.00022411,2]
[313633159,1707503409556,27517.4479,0.00022402,14]
[313633160,1707503416624,3173.38386226,0.00022502,7]
[313633161,1707503417127,3694.67385054,0.00022502,4]
[313633162,1707503417164,547.91216625,0.00022502,7]
[313633163,1707503424218,7139.91557656,0.00022502,5]
[313633164,1707503425342,129960.99815506,0.00022502,2]
[313633165,1707503426632,150.0,0.00026716,15]
[313633179,1707503433143,547.91216625,0.00022502,7]
[313633183,1707503435904,500.0,0.00021918,2]
[313633184,1707503436620,3173.38386226,0.00022502,7]
[313633218,1707503438204,7139.91557656,0.00022502,5]
[313633219,1707503438981,-1041.32357854,0.00022503,2]
[313633220,1707503438991,-19085.77689534,0.00022503,2]
[313633221,1707503439000,-155.0,0.00022507,7]
[313633222,1707503439010,-161.27842766,0.00022507,2]
[313633223,1707503439019,-3694.67385054,0.00022507,4]
[313633224,1707503439029,-686.99133453,0.00022508,2]
[313633225,1707503439038,-103848.28285504,0.00022508,2]
[313633226,1707503439048,-1064.16944181,0.00022508,2]
[313633227,1707503439057,-302.49031593,0.00022509,2]
[313633228,1707503439067,-1387.10464213,0.00022517,2]
[313633229,1707503439076,-293.08,0.00022517,2]
[313633230,1707503439086,-2415.0321295,0.00022517,2]
[313633231,1707503439096,-999.99,0.00022517,2]
[313633232,1707503439106,-181.71000788,0.00022518,2]
[313633233,1707503439115,-2593.82705326,0.0002252,2]
[313633234,1707503439125,-700.11998778,0.0002252,2]